bitfinex-derivatives/quotes_ETHF0:USTF0_20241018
["timestamp","ask_amount","ask_price","bid_price","bid_amount"]
[1729237782457,4.5778,2635.0,2634.6,1.40228887]
[1729237782744,1.37,2634.7,2634.6,2.15904]
[1729237783143,1.37,2634.7,2634.6,1.7794]
[1729237783342,1.37,2634.7,2634.6,2.15905]
[1729237783540,1.37,2634.7,2634.6,1.7794]
[1729237785049,1.74964,2634.7,2634.6,0.4094]
[1729237786644,0.37967,2634.5,2634.3,2.7899]
[1729237786836,0.37967,2634.5,2634.4,1.7797]
[1729237786837,1.37,2634.5,2634.4,1.7797]
[1729237787342,1.37,2634.5,2634.4,2.15938]
[1729237787942,1.37,2634.5,2634.4,0.78938]
[1729237788145,1.37,2634.5,2634.4,2.15938]
[1729237789150,1.37,2634.5,2634.4,1.7797]
[1729237789551,1.37,2634.5,2634.4,2.16018]
[1729237789744,1.37,2634.5,2634.4,0.79018]
[1729237789986,1.74967,2634.5,2634.4,0.4105]
[1729237790147,2.15077,2634.5,2634.4,0.4105]
[1729237790851,5.94677,2634.5,2634.4,0.0008]
[1729237791251,2.15077,2634.5,2634.4,0.0008]
[1729237791442,5.94677,2634.5,2634.4,0.0008]
[1729237791745,13.31677,2634.5,2634.4,0.0008]
[1729237791945,16.52457,2634.5,2634.4,0.0008]
[1729237793024,0.37976,2633.9,2633.8,0.3951]
[1729237793368,1.74976,2633.9,2633.8,0.3951]
[1729237795845,0.37976,2633.9,2633.8,0.3951]
[1729237796050,1.74976,2633.9,2633.8,0.3951]
[1729237801355,0.37976,2633.9,2633.8,0.3951]
[1729237801552,1.74976,2633.9,2633.8,0.3951]
[1729237802457,1.37,2634.5,2633.8,14.7697]
[1729237802664,4.15689,2634.8,2634.0,0.37973]
[1729237802665,1.37,2634.1,2634.0,0.37973]
[1729237802858,1.37,2634.1,2634.0,0.77893]
[1729237803052,1.37,2634.2,2634.0,0.3992]
[1729237803361,1.74971,2634.2,2634.0,1.7692]
[1729237804462,1.74971,2634.2,2634.0,2.14894]
[1729237804765,1.74971,2634.2,2634.0,1.7692]
[1729237805057,1.74971,2634.2,2634.0,2.14894]
[1729237805564,1.37,2634.2,2634.0,5.35674]
[1729237805762,1.74971,2634.2,2634.0,5.35674]
[1729237806062,1.37,2634.2,2634.0,5.35674]
[1729237806765,1.37,2634.2,2634.0,4.977]
[1729237807263,1.37,2634.2,2634.0,5.35674]
[1729237807264,1.74972,2634.2,2634.0,5.35674]
[1729237807466,1.37,2634.2,2634.1,0.37973]
[1729237807653,1.37,2634.2,2634.0,4.977]
[1729237807862,1.37,2634.2,2634.0,5.35673]
[1729237808167,1.37,2634.2,2634.1,0.37973]
[1729237808559,1.37,2634.3,2634.0,4.977]
[1729237808755,1.7497,2634.3,2634.2,1.37]
[1729237809063,1.7497,2634.3,2634.1,1.74972]
[1729237809064,1.37,2634.3,2634.1,1.74972]
[1729237809268,1.7497,2634.3,2634.2,0.4081]
[1729237809562,1.74968,2634.4,2634.2,1.7781]
[1729237809863,1.37,2634.3,2634.2,1.7781]
[1729237810161,1.37,2634.3,2634.2,0.4081]
[1729237810667,1.37,2634.3,2634.2,0.78781]
[1729237811363,1.7497,2634.3,2634.2,0.4081]
[1729237814774,1.37,2634.3,2634.0,0.3992]
[1729237814970,0.37973,2634.1,2634.0,1.37]
[1729237816170,1.74973,2634.1,2633.9,2.57875]
[1729237816359,2.58502,2634.2,2634.0,1.74974]
[1729237816563,0.37973,2634.1,2634.0,1.37]
[1729237817366,1.37,2634.1,2633.9,1.7852]
[1729237817670,0.37974,2634.0,2633.9,1.7852]
[1729237817865,1.7895,2634.1,2633.9,1.7852]
[1729237818173,0.37974,2634.0,2633.9,1.7852]
[1729237818571,1.7895,2634.1,2633.9,1.7852]
[1729237818870,0.79923,2634.1,2634.0,1.37]
[1729237819187,0.37973,2634.1,2634.0,1.37]
[1729237819872,0.37974,2634.0,2633.9,1.786]
[1729237820070,1.74974,2634.0,2633.9,0.416]
[1729237820364,1.74974,2634.0,2633.9,0.0008]
[1729237821302,0.37986,2633.2,2633.1,4.20068887]
[1729237821473,1.74986,2633.2,2633.1,3.2078]
[1729237821664,1.37,2633.2,2633.1,4.5778]
[1729237821867,2.1621,2633.4,2633.2,0.37985]
[1729237822166,2.1621,2633.4,2633.2,1.74985]
[1729237822167,0.7921,2633.4,2633.2,1.74985]
[1729237822476,2.54193,2633.4,2633.3,0.4259]
[1729237823990,2.54193,2633.4,2633.1,3.2078]
[1729237824169,0.37987,2633.1,2633.0,0.4176]
[1729237824373,1.74987,2633.1,2633.0,0.4176]
[1729237825168,0.37988,2633.0,2632.8,1.74991]
[1729237825371,0.4292,2633.0,2632.8,2.16751]
[1729237825574,1.37,2632.9,2632.8,2.16751]
[1729237825874,1.37,2632.9,2632.7,3.2078]
[1729237826173,2.1949,2632.8,2632.7,4.5778]
[1729237826379,1.7942,2632.8,2632.7,4.5778]
[1729237826774,2.17411,2632.8,2632.7,4.5778]
[1729237827165,1.7942,2632.8,2632.7,4.5778]
[1729237827370,2.17411,2632.8,2632.7,4.5778]
[1729237827681,2.17411,2632.8,2632.7,3.2078]
[1729237827975,0.80411,2632.8,2632.7,3.2078]
[1729237830576,0.4242,2632.8,2632.7,3.2078]
[1729237831180,0.80411,2632.8,2632.7,3.2078]
[1729237831387,0.4242,2632.8,2632.7,3.2078]
[1729237831775,0.80411,2632.8,2632.7,3.2078]
[1729237831976,0.4242,2632.8,2632.7,3.2078]
[1729237832292,0.80411,2632.8,2632.7,3.2078]
[1729237832877,0.4242,2632.8,2632.7,3.2078]
[1729237834087,0.4242,2632.8,2632.7,3.58773]
[1729237834378,0.4242,2632.8,2632.7,3.2078]
[1729237835287,0.4242,2632.8,2632.7,3.58773]
[1729237835898,0.4292,2633.0,2632.7,3.2078]
[1729237836082,0.8091,2633.0,2632.8,0.4255]
[1729237836283,0.8091,2633.0,2632.8,0.80541]
[1729237836483,0.4292,2633.0,2632.9,0.3799]
[1729237837083,0.4292,2633.0,2632.9,0.8068]
[1729237838895,0.37987,2633.1,2633.0,0.37988]
[1729237839801,3.3767,2633.3,2632.9,0.4269]
[1729237839995,0.37988,2633.0,2632.9,0.80679]
[1729237842494,3.3767,2633.3,2632.9,0.4269]
[1729237842794,0.37988,2633.0,2632.9,0.80679]
[1729237846693,0.37988,2633.0,2632.9,0.4269]
[1729237847096,1.18388,2633.0,2632.9,0.4269]
[1729237847796,2.55388,2633.0,2632.9,0.4269]
[1729237848197,0.37988,2633.1,2632.9,5.0047]
[1729237848399,1.37,2633.0,2632.9,5.3846]
[1729237849197,1.37,2633.0,2632.9,5.0047]
[1729237849401,1.37,2633.0,2632.9,4.0154]
[1729237849992,1.74987,2633.1,2633.0,0.37988]
[1729237850898,0.37987,2633.1,2633.0,0.37988]
[1729237851097,1.74987,2633.1,2633.0,0.37988]
[1729237851294,0.37987,2633.1,2633.0,0.37988]
[1729237851490,0.4067,2633.3,2633.1,0.37987]
[1729237851700,1.74986,2633.2,2633.1,0.37987]
[1729237852923,1.74986,2633.2,2633.0,0.4009]
[1729237852924,0.37987,2633.1,2633.0,0.37988]
[1729237853098,1.37,2633.1,2633.0,0.37988]
[1729237853298,1.74987,2633.1,2633.0,0.37988]
[1729237853603,1.37,2633.1,2632.9,4.01539]
[1729237853800,1.37,2633.0,2632.9,3.6355]
[1729237854000,2.55408,2633.0,2632.9,3.6355]
[1729237854197,2.1742,2633.0,2632.9,0.8076]
[1729237854806,1.7639,2633.0,2632.9,0.8076]
[1729237855696,0.3939,2633.0,2632.9,2.1776]
[1729237856003,1.7639,2633.0,2632.9,0.8076]
[1729237856397,1.7639,2633.0,2632.9,0.4277]
[1729237856796,1.7639,2633.0,2632.9,0.8076]
[1729237856993,2.14378,2633.0,2632.9,0.4277]
[1729237857208,2.14378,2633.0,2632.9,0.8076]
[1729237857209,1.7639,2633.0,2632.9,0.8076]
[1729237862303,1.7639,2633.0,2632.9,0.4277]
[1729237862610,1.7639,2633.0,2632.9,3.6355]
[1729237862797,1.7639,2633.0,2632.9,4.0154]
[1729237863300,1.7639,2633.0,2632.9,0.8076]
[1729237863505,1.7639,2633.0,2632.9,4.0154]
[1729237864102,1.7639,2633.0,2632.9,3.6355]
[1729237864302,2.14378,2633.0,2632.9,3.2086]
[1729237864507,4.57218,2633.0,2632.9,0.0008]
[1729237864713,2.14378,2633.0,2632.9,0.0008]
[1729237864913,5.94218,2633.0,2632.9,0.0008]
[1729237865812,2.14378,2633.0,2632.9,0.0008]
[1729237874911,5.94218,2633.0,2632.9,0.0008]
[1729237876715,0.37997,2632.4,2632.3,0.99288887]
[1729237876912,0.37999,2632.3,2632.2,0.99288887]
[1729237877107,2.216,2632.3,2632.2,0.99288887]
[1729237877312,2.59599,2632.3,2632.2,0.99288887]
[1729237877620,0.38,2632.2,2632.1,1.41858887]
[1729237877822,1.75,2632.2,2632.1,1.41858887]
[1729237878213,0.38,2632.2,2632.1,1.41858887]
[1729237878417,1.75,2632.2,2632.1,1.41858887]
[1729237879021,1.75,2632.2,2632.1,0.4257]
[1729237879418,1.37,2632.2,2632.1,1.41858887]
[1729237879720,1.37,2632.2,2632.1,2.17571]
[1729237880017,1.37,2632.2,2632.1,3.16859887]
[1729237880210,1.37,2632.2,2632.1,7.74302822]
[1729237880721,1.19436,2632.6,2632.3,0.37998]
[1729237880927,1.37,2632.4,2632.3,1.74998]
[1729237882414,1.37,2632.4,2632.3,0.37998]
[1729237884125,1.74997,2632.4,2632.2,1.80395171]
[1729237884314,1.37,2632.3,2632.2,1.80395171]
[1729237885028,1.37,2632.3,2632.2,0.99536171]
[1729237885220,2.5936,2632.3,2632.1,5.00887171]
[1729237885517,1.37,2632.2,2632.1,5.00887171]
[1729237886219,1.2236,2632.3,2632.1,4.62886171]
[1729237886428,0.8279,2632.3,2632.2,0.38]
[1729237886622,2.1979,2632.3,2632.2,0.38]
[1729237889412,2.1979,2632.3,2632.2,1.0]
[1729237889618,2.1979,2632.3,2632.2,1.38]
[1729237889919,2.57789,2632.3,2632.2,1.0]
[1729237890516,2.1979,2632.3,2632.2,1.38]
[1729237890720,2.1979,2632.3,2632.2,1.0]
[1729237890917,2.57789,2632.3,2632.2,1.0]
[1729237892136,2.1979,2632.3,2632.2,1.0]
[1729237892545,1.7971,2632.3,2632.2,1.38]
[1729237892835,0.37996,2632.5,2632.3,0.37998]
[1729237893046,1.37,2632.4,2632.3,0.37998]
[1729237894531,1.37,2632.4,2632.3,0.38078]
[1729237894722,0.37996,2632.5,2632.3,0.38078]
[1729237894924,1.37,2632.4,2632.3,0.38078]
[1729237902631,1.37,2632.4,2632.3,0.0008]
[1729237902934,1.37,2632.4,2632.3,0.38079]
[1729237904734,1.74997,2632.4,2632.3,0.38079]
[1729237904935,1.74997,2632.4,2632.3,0.0008]
[1729237905942,1.37,2632.4,2632.3,0.0008]
[1729237906236,1.74997,2632.4,2632.3,0.0008]
[1729237907137,1.74997,2632.4,2632.2,5.58316171]
[1729237907450,1.37,2632.3,2632.2,5.58316171]
[1729237907637,1.778,2632.3,2632.2,5.58316171]
[1729237908644,1.778,2632.3,2632.2,2.37536171]
[1729237909051,1.778,2632.3,2632.2,5.58316171]
[1729237909436,1.778,2632.3,2632.2,6.95908052]
[1729237910040,0.408,2632.3,2632.2,6.95908052]
[1729237910228,1.778,2632.3,2632.2,6.95906557]
[1729237910432,1.778,2632.3,2632.2,7.44599341]
[1729237911343,1.778,2632.3,2632.2,7.44638447]
[1729237912534,1.778,2632.3,2632.2,4.23858447]
[1729237912746,1.778,2632.3,2632.2,7.44638447]
[1729237913450,0.408,2632.3,2632.2,7.44638447]
[1729237913742,1.778,2632.3,2632.2,7.44638447]
[1729237915978,1.778,2632.3,2632.2,6.0700746]
[1729237916152,1.778,2632.3,2632.2,7.44631634]
[1729237917553,1.778,2632.3,2632.2,7.45753312]
[1729237917753,1.778,2632.3,2632.2,5.96404174]
[1729237918260,1.778,2632.3,2632.2,6.08284727]
[1729237920563,1.778,2632.3,2632.2,4.70660553]
[1729237920750,1.778,2632.3,2632.2,8.04743106]
[1729237921358,1.778,2632.3,2632.2,8.52265409]
[1729237921557,1.778,2632.3,2632.2,11.27870189]
[1729237921867,1.778,2632.3,2632.2,11.27896807]
[1729237922867,0.8257,2632.6,2632.2,10.57920308]
[1729237923065,2.1957,2632.6,2632.5,1.87541288]
[1729237923251,2.1957,2632.6,2632.5,3.25270372]
[1729237923463,2.1957,2632.6,2632.5,2.87274372]
[1729237923464,2.57564,2632.6,2632.5,2.87274372]
[1729237924576,2.57564,2632.6,2632.5,3.25270372]
[1729237924964,2.57564,2632.6,2632.5,2.87274372]
[1729237925871,2.1957,2632.6,2632.5,3.25270372]
[1729237926082,2.1957,2632.6,2632.5,2.99154548]
[1729237926083,2.57564,2632.6,2632.5,2.99154548]
[1729237926372,2.57564,2632.6,2632.5,2.87274372]
[1729237926571,2.57564,2632.6,2632.5,3.3715056]
[1729237927173,2.57564,2632.6,2632.5,3.25270372]
[1729237927376,2.57564,2632.6,2632.5,2.87274372]
[1729237927873,2.57564,2632.6,2632.5,3.37150353]
[1729237928076,2.57564,2632.6,2632.5,3.37150519]
[1729237928277,2.57564,2632.6,2632.5,3.37150542]
[1729237928674,2.57564,2632.6,2632.5,3.37282598]
[1729237929070,2.57564,2632.6,2632.5,3.37282568]
[1729237930272,2.57564,2632.6,2632.5,3.37282475]
[1729237930774,2.1957,2632.6,2632.5,3.37282475]
[1729237931575,2.1957,2632.6,2632.5,3.37288632]
[1729237931870,2.1957,2632.6,2632.5,3.37284626]
[1729237932793,2.1957,2632.6,2632.5,3.25404579]
[1729237933077,2.1957,2632.6,2632.5,1.87736944]
[1729237933279,1.37,2632.6,2632.5,1.87736944]
[1729237933481,1.37,2632.6,2632.5,1.87710281]
[1729237933774,1.37,2632.6,2632.5,3.37247537]
[1729237934572,1.37,2632.6,2632.5,1.87710281]
[1729237934779,1.37,2632.6,2632.5,3.3724775]
[1729237936282,1.37,2632.6,2632.5,1.87710281]
[1729237936777,1.37,2632.6,2632.5,1.87709958]
[1729237937173,1.37,2632.6,2632.5,6.5801807]
[1729237937377,1.37,2632.6,2632.5,5.08489958]
[1729237937682,1.37,2632.6,2632.5,4.70493958]
[1729237937979,0.37986,2633.2,2632.5,22.78210238]
[1729237938274,8.60374679,2633.8,2633.0,1.37643631]
[1729237938275,1.37,2633.1,2633.0,1.37643631]
[1729237938478,1.37,2633.1,2633.0,2.74423631]
[1729237938674,1.37,2633.1,2633.0,2.36435631]
[1729237938873,1.37,2633.1,2633.0,2.74423631]
[1729237939383,1.37,2633.1,2633.0,2.36435631]
[1729237939589,1.74987,2633.1,2633.0,1.3686]
[1729237939774,1.37,2633.1,2633.0,1.3686]
[1729237939976,1.37,2633.1,2633.0,1.74848]
[1729237940381,1.74987,2633.1,2633.0,0.0008]
[1729237948483,1.37,2633.1,2632.8,5.56425631]
[1729237948685,1.37,2632.9,2632.8,5.56425631]
[1729237949489,1.37,2632.9,2632.8,5.56426631]
[1729237950388,1.37,2632.9,2632.8,5.18435631]
[1729237950593,1.37,2632.9,2632.8,5.56426631]
[1729237951086,1.37,2632.9,2632.8,5.18435631]
[1729237951395,1.37,2632.9,2632.8,5.56426631]
[1729237952092,1.37,2632.9,2632.8,2.35646631]
[1729237952425,1.37,2632.9,2632.8,5.56426631]
[1729237953696,0.3979,2633.0,2632.9,0.3799]
[1729237953893,1.7679,2633.0,2632.9,0.3799]
[1729237954590,2.14778,2633.0,2632.9,0.3799]
[1729237955194,2.14778,2633.0,2632.9,1.3589]
[1729237955393,2.14778,2633.0,2632.9,0.979]
[1729237955989,1.7679,2633.0,2632.9,1.3589]
[1729237956193,2.14778,2633.0,2632.9,1.3589]
[1729237957292,2.14778,2633.0,2632.9,3.5877]
[1729237957494,2.14778,2633.0,2632.9,3.2078]
[1729237958196,2.14778,2633.0,2632.9,3.5877]
[1729237958393,1.7679,2633.0,2632.9,3.5877]
[1729237958693,1.7679,2633.0,2632.9,0.3799]
[1729237958895,2.14778,2633.0,2632.9,3.2078]
[1729237959394,2.14778,2633.0,2632.8,2.35545631]
[1729237959715,1.37,2632.9,2632.8,2.35545631]
[1729237959991,1.37,2632.9,2632.8,5.56325631]
[1729237960195,1.7729,2632.9,2632.8,6.9356283]
[1729237960995,1.7729,2632.9,2632.8,5.56325631]
[1729237962494,1.7729,2632.9,2632.8,2.35545631]
[1729237963296,1.7729,2632.9,2632.8,3.72800803]
[1729237963886,1.7729,2632.9,2632.8,2.35545631]
[1729237964190,1.7729,2632.9,2632.8,1.97555631]
[1729237964395,2.1528,2632.9,2632.8,1.97555631]
[1729237964600,2.1528,2632.9,2632.8,2.35546631]
[1729237964791,2.1528,2632.9,2632.8,1.97555631]
[1729237964792,1.7729,2632.9,2632.8,1.97555631]
[1729237965002,2.1528,2632.9,2632.8,1.97555631]
[1729237965198,1.7729,2632.9,2632.8,2.35546631]
[1729237965398,1.7729,2632.9,2632.8,3.72825604]
[1729237965699,2.1528,2632.9,2632.8,1.97555631]
[1729237966191,2.1528,2632.9,2632.8,3.8467444]
[1729237966500,1.7729,2632.9,2632.8,3.34710241]
[1729237966690,1.7729,2632.9,2632.8,4.2266544]
[1729237966993,1.7729,2632.9,2632.8,2.35190994]
[1729237967195,2.1528,2632.9,2632.8,3.34708522]
[1729237967504,2.1528,2632.9,2632.8,2.35187998]
[1729237967801,1.7729,2632.9,2632.8,5.55967998]
[1729237968094,1.7729,2632.9,2632.8,5.93958998]
[1729237968601,1.7729,2632.9,2632.8,4.22662444]
[1729237968897,1.7729,2632.9,2632.8,7.43442444]
[1729237970193,1.7729,2632.9,2632.8,4.22662444]
[1729237970903,1.7729,2632.9,2632.8,4.22704477]
[1729237971100,1.7729,2632.9,2632.8,7.43484477]
[1729237971505,2.1528,2632.9,2632.8,7.05493477]
[1729237973311,0.3979,2633.0,2632.9,0.3799]
[1729237973524,1.74989,2633.0,2632.9,1.42062467]
[1729237974195,1.37,2633.0,2632.9,1.80052467]
[1729237974405,1.74988,2633.0,2632.9,1.42062467]
[1729237974595,1.74988,2633.0,2632.9,2.79413701]
[1729237974792,1.74988,2633.0,2632.9,1.42062467]
[1729237975231,1.74988,2633.0,2632.9,2.79411695]
[1729237975404,1.74988,2633.0,2632.9,2.39962467]
[1729237976200,1.74988,2633.0,2632.9,4.27259763]
[1729237976798,1.74988,2633.0,2632.9,3.7733925]
[1729237977404,1.74988,2633.0,2632.9,2.77776317]
[1729237977802,1.37,2633.0,2632.9,4.27259763]
[1729237978002,1.74988,2633.0,2632.9,4.65249763]
[1729237980417,1.74988,2633.0,2632.9,4.27279496]
[1729237980806,1.74988,2633.0,2632.9,4.27218065]
[1729237981207,1.74988,2633.0,2632.9,4.39096015]
[1729237981406,1.74988,2633.0,2632.9,2.89674]
[1729237981705,1.37,2633.0,2632.9,3.27664]
[1729237982105,1.74988,2633.0,2632.9,3.27664]
[1729237982407,1.37,2633.0,2632.9,3.27664]
[1729237982608,1.37,2633.0,2632.9,5.74487112]
[1729237983006,1.37,2633.0,2632.9,5.74485407]
[1729237983210,1.37,2633.0,2632.9,3.27664]
[1729237983539,1.37,2633.0,2632.9,8.49679811]
[1729237983715,1.37,2633.0,2632.9,5.7462713]
[1729237984917,1.74988,2633.0,2632.9,3.37325868]
[1729237985315,1.74988,2633.0,2632.9,2.8981429]
[1729237985636,1.74988,2633.0,2632.9,4.89125552]
[1729237985909,1.74988,2633.0,2632.9,5.36638506]
[1729237986114,1.74988,2633.0,2632.9,3.37327244]
[1729237986610,1.74988,2633.0,2632.9,1.4940429]
[1729237988217,1.74988,2633.0,2632.9,1.49416]
[1729237989018,1.74988,2633.0,2632.9,3.48727262]
[1729237989513,1.74988,2633.0,2632.9,1.49416]
[1729237990113,1.74988,2633.0,2632.9,3.48727262]
[1729237990618,1.74988,2633.0,2632.9,1.49416302]
[1729237991020,1.74988,2633.0,2632.9,3.48727564]
[1729237991221,1.74988,2633.0,2632.9,1.49416302]
[1729237994917,1.74988,2633.0,2632.9,1.49416307]
[1729237996422,1.74988,2633.0,2632.9,3.48727569]
[1729237997125,1.74988,2633.0,2632.9,1.49416307]
[1729237997321,1.74988,2633.0,2632.9,3.48727569]
[1729237998033,1.74988,2633.0,2632.9,1.49416307]
[1729237998240,1.74988,2633.0,2632.9,2.98916659]
[1729237998425,1.74988,2633.0,2632.9,1.49416384]
[1729238002228,1.37,2633.0,2632.9,1.38993578]
[1729238002428,1.74988,2633.0,2632.9,1.38993578]
[1729238002635,1.74988,2633.0,2632.9,1.50871847]
[1729238003423,1.74988,2633.0,2632.9,1.38993578]
[1729238003636,1.74988,2633.0,2632.9,1.50871861]
[1729238004324,1.74988,2633.0,2632.9,2.88434896]
[1729238004532,1.74988,2633.0,2632.9,1.50872016]
[1729238004831,1.74988,2633.0,2632.9,2.88439031]
[1729238005235,0.37988,2633.0,2632.9,2.88439031]
[1729238005432,0.37988,2633.0,2632.9,3.50183093]
[1729238005639,1.74988,2633.0,2632.9,3.50183093]
[1729238006255,0.4013,2633.2,2632.9,3.88172681]
[1729238006256,0.37988,2633.1,2632.9,3.88172681]
[1729238006457,1.37,2633.0,2632.9,2.46821966]
[1729238006737,1.37,2633.0,2632.9,6.75550476]
[1729238006933,1.37,2633.0,2632.9,7.13527276]
[1729238007136,0.4013,2633.2,2632.9,8.12533222]
[1729238007357,4.45874679,2634.1,2633.1,7.94091262]
[1729238007557,4.145,2634.3,2633.9,1.37]
[1729238007558,0.3945,2634.0,2633.9,1.37]
[1729238007739,1.7645,2634.0,2633.9,4.13304189]
[1729238007941,1.37,2634.0,2633.9,3.25643745]
[1729238008128,1.37,2634.0,2633.9,3.13770713]
[1729238008350,1.7806,2634.2,2634.0,0.37973]
[1729238008705,6.46409,2634.8,2634.4,0.37968]
[1729238008706,0.37965,2634.7,2634.4,0.37968]
[1729238008943,1.37,2634.5,2634.4,6.92945208]
[1729238009148,0.8095,2635.0,2634.4,6.54977208]
[1729238009340,3.2078,2635.3,2634.4,6.54977208]
[1729238009341,1.37,2635.1,2634.9,1.74961]
[1729238009554,0.4249,2635.5,2635.1,0.37957]
[1729238009555,0.37953,2635.5,2635.1,0.37957]
[1729238009748,0.94859,2636.2,2635.3,3.58735]
[1729238009749,1.37,2635.4,2635.3,3.58735]
[1729238010126,0.37946,2636.0,2635.5,0.37951]
[1729238010263,1.37,2635.9,2635.8,1.37]
[1729238010547,0.3888,2636.1,2635.8,1.37]
[1729238010756,1.37,2635.9,2635.7,4.5778]
[1729238011135,1.37,2635.9,2635.8,0.979]
[1729238012355,0.37948,2635.8,2635.7,3.2078]
[1729238012579,0.3888,2636.1,2635.8,0.59852]
[1729238012819,1.37,2635.9,2635.7,3.2078]
[1729238013070,1.74948,2635.8,2635.7,4.1858]
[1729238013644,1.37,2635.8,2635.7,4.1858]
[1729238013852,40.8,2636.2,2635.8,0.37947]
[1729238014044,1.37,2636.3,2636.1,4.5778]
[1729238014244,1.37,2636.2,2636.1,1.37]
[1729238014446,1.74943,2636.2,2636.0,1.37]
[1729238014648,1.74944,2636.1,2636.0,1.37]
[1729238014947,0.37946,2636.0,2635.8,3.2078]
[1729238015143,0.37945,2636.0,2635.9,0.978]
[1729238015443,0.37947,2635.9,2635.8,4.1858]
[1729238015654,1.74947,2635.9,2635.8,3.2078]
[1729238015947,1.74947,2635.9,2635.8,4.5778]
[1729238016642,1.74947,2635.9,2635.8,3.2078]
[1729238020547,1.74947,2635.9,2634.5,9.5]
[1729238020548,0.3795,2635.7,2635.6,0.977]
[1729238020736,0.37952,2635.6,2635.5,0.977]
[1729238020939,1.37,2635.6,2635.5,5.5548]
[1729238021539,1.74952,2635.6,2635.5,5.5548]
[1729238022747,1.74952,2635.6,2635.5,2.347]
[1729238023253,1.74952,2635.6,2635.0,0.837]
[1729238023254,12.5344,2635.6,2635.0,0.837]
[1729238023444,1.37,2635.1,2634.8,0.59737]
[1729238023645,1.74961,2634.9,2634.8,0.59737]
[1729238023958,42.54961,2634.9,2634.8,0.59737]
[1729238024142,46.34481,2634.9,2634.8,0.59737]
[1729238024447,46.34481,2634.9,2633.8,1.37]
[1729238024448,0.37973,2634.1,2633.8,1.37]
[1729238024663,0.94907,2634.8,2634.0,4.5778]
[1729238024664,1.37,2634.3,2634.0,4.5778]
[1729238024953,0.37971,2634.3,2634.2,1.37]
[1729238025153,1.74971,2634.3,2634.2,1.37]
[1729238025554,0.4145,2634.8,2634.2,4.5778]
[1729238025744,0.37962,2634.9,2634.7,1.37]
[1729238025951,3.58739,2635.1,2634.7,0.37963]
[1729238026148,3.58739,2635.1,2634.8,0.977]
[1729238027244,3.46239,2635.1,2634.8,0.977]
[1729238027749,3.46239,2635.1,2634.8,1.35662]
[1729238027955,0.37956,2635.3,2635.0,3.2078]
[1729238028250,0.4161,2635.5,2635.0,3.5874]
[1729238028443,7.3528,2635.9,2635.0,6.1678]
[1729238028444,40.8,2635.7,2635.0,6.1678]
[1729238028649,0.37955,2635.4,2635.1,0.37958]
[1729238030044,2.96,2635.8,2635.0,6.1678]
[1729238030246,3.2078,2635.9,2635.3,3.2078]
[1729238030448,3.2078,2635.9,2635.4,1.77403]
[1729238030753,0.3795,2635.7,2635.4,1.77403]
[1729238031148,3.2078,2635.9,2635.4,1.3945]
[1729238031347,0.37947,2635.9,2635.6,0.3795]
[1729238031951,0.37947,2635.9,2635.8,3.2078]
[1729238034149,0.37949,2635.8,2635.7,3.2078]
[1729238035956,0.37949,2635.8,2635.6,0.3795]
[1729238036158,0.37949,2635.8,2635.7,3.2078]
[1729238037758,2.96,2636.2,2635.7,3.2078]
[1729238038066,0.37947,2635.9,2635.7,3.58729]
[1729238038453,0.37946,2636.0,2635.8,0.37948]
[1729238038755,0.37946,2636.0,2635.7,3.2078]
[1729238038756,3.6303,2636.4,2635.7,3.2078]
[1729238039058,0.37946,2636.0,2635.8,0.37948]
[1729238039650,0.37945,2636.1,2635.9,0.37946]
[1729238039852,44.4303,2636.4,2636.0,1.35645]
[1729238039853,0.37943,2636.2,2636.0,1.35645]
[1729238040166,3.6303,2636.4,2636.0,4.98555]
[1729238040167,0.37944,2636.1,2636.0,4.98555]
[1729238040354,0.37944,2636.1,2636.0,4.6061]
[1729238041255,0.37944,2636.1,2636.0,1.3983]
[1729238047464,0.37944,2636.1,2636.0,0.988]
[1729238049066,7.53882,2636.4,2636.0,0.60853]
[1729238049463,0.37944,2636.1,2636.0,0.60853]
[1729238050068,0.4225,2636.4,2636.0,0.98797]
[1729238050277,0.4225,2636.4,2636.0,0.60853]
[1729238050579,0.37942,2636.3,2636.0,0.98797]
[1729238050766,0.37942,2636.2,2636.0,0.98797]
[1729238051466,0.37942,2636.3,2636.0,0.98797]
[1729238051672,0.37942,2636.3,2636.1,0.37943]
[1729238051862,0.4225,2636.4,2636.1,3.58724]
[1729238051863,0.8019,2636.4,2636.1,3.58724]
[1729238052060,3.2078,2637.1,2636.3,2.96]
[1729238052267,2.96,2637.2,2636.6,2.96]
[1729238052268,0.8181,2637.2,2636.6,2.96]
[1729238052545,0.8181,2637.2,2636.7,1.36735]
[1729238052546,0.37932,2637.0,2636.7,1.36735]
[1729238053003,0.37932,2637.0,2636.7,1.78995]
[1729238053024,0.37932,2637.0,2636.7,1.4106]
[1729238053312,0.37932,2637.0,2636.7,1.78995]
[1729238053582,0.8181,2637.2,2636.7,2.40054814]
[1729238053790,0.37931,2637.0,2636.8,3.58713]
[1729238054273,0.37931,2637.0,2636.8,3.2078]
[1729238054459,0.37931,2637.0,2636.8,4.19774814]
[1729238054964,0.37927,2637.3,2636.9,0.98994814]
[1729238055169,0.37927,2637.3,2637.2,3.2078]
[1729238058774,0.8455,2637.5,2637.1,3.2078]
[1729238059075,0.37928,2637.2,2637.1,3.2078]
[1729238060871,0.94818,2637.3,2637.0,0.60868]